[Event "Titled Tuesday Blitz January 17 Late 2023"]
[White "Remolar Gallen, Jose"]
[Black "Lindholt, Malik"]
[WhiteFideId "2215187"]
[BlackFideId "1404490"]
[WhiteElo "2285"]
[BlackElo "2177"]
[Result "1-0"]
[Round "02"]
[TimeControl "180+2"]
[Date "2023.01.17"]
[WhiteClock "0:00:07"]
[BlackClock "0:00:43"]

1. d4 {[%clk 0:03:00]}  Nf6 {[%clk 0:02:59]} 2. c4 {[%clk 0:03:00]}  g6 {[%clk 0:03:00]} 3. Nc3 {[%clk 0:03:01]}  Bg7 {[%clk 0:03:00]} 4. e4 {[%clk 0:02:58]}  d6 {[%clk 0:03:01]} 5. f3 {[%clk 0:02:58]}  O-O {[%clk 0:03:01]} 6. Be3 {[%clk 0:02:58]}  Nc6 {[%clk 0:03:01]} 7. Nge2 {[%clk 0:02:56]}  a6 {[%clk 0:03:01]} 8. Qd2 {[%clk 0:02:56]}  Rb8 {[%clk 0:03:02]} 9. Ng3 {[%clk 0:02:41]}  e5 {[%clk 0:02:59]} 10. d5 {[%clk 0:02:38]}  Ne7 {[%clk 0:02:59]} 11. Bh6 {[%clk 0:02:33]}  Nd7 {[%clk 0:02:56]} 12. Bd3 {[%clk 0:02:22]}  f5 {[%clk 0:02:54]} 13. exf5 {[%clk 0:02:18]}  Nxf5 {[%clk 0:02:54]} 14. Bxg7 {[%clk 0:02:06]}  Kxg7 {[%clk 0:02:50]} 15. O-O-O {[%clk 0:01:55]}  Nc5 {[%clk 0:02:45]} 16. Bxf5 {[%clk 0:01:51]}  Bxf5 {[%clk 0:02:40]} 17. Nce4 {[%clk 0:01:40]}  b5 {[%clk 0:02:32]} 18. Nxf5+ {[%clk 0:01:32]}  gxf5 {[%clk 0:02:30]} 19. Nxc5 {[%clk 0:01:30]}  dxc5 {[%clk 0:02:31]} 20. Rhe1 {[%clk 0:01:26]}  Qf6 {[%clk 0:02:22]} 21. d6 {[%clk 0:01:07]}  Rbd8 {[%clk 0:02:20]} 22. d7 {[%clk 0:01:07]}  bxc4 {[%clk 0:02:14]} 23. Qd5 {[%clk 0:01:02]}  c3 {[%clk 0:02:07]} 24. Rxe5 {[%clk 0:00:53]}  cxb2+ {[%clk 0:02:07]} 25. Kb1 {[%clk 0:00:53]}  Rf7 {[%clk 0:01:55]} 26. g4 {[%clk 0:00:20]}  Rdxd7 {[%clk 0:01:48]} 27. Qxd7 {[%clk 0:00:14]}  Qxe5 {[%clk 0:01:43]} 28. Qd3 {[%clk 0:00:13]}  fxg4 {[%clk 0:01:34]} 29. Rg1 {[%clk 0:00:12]}  Qf5 {[%clk 0:01:15]} 30. Rxg4+ {[%clk 0:00:10]}  Kf8 {[%clk 0:00:54]} 31. Re4 {[%clk 0:00:09]}  Qxf3 {[%clk 0:00:47]} 32. Qd8+ {[%clk 0:00:09]}  Kg7 {[%clk 0:00:47]} 33. Qg5+ {[%clk 0:00:09]}  Kf8 {[%clk 0:00:47]} 34. Qh6+ {[%clk 0:00:07]}  Rg7 {[%clk 0:00:44]} 35. Rf4+ {[%clk 0:00:07]}  Qxf4 {[%clk 0:00:43]} 36. Qxf4+ {[%clk 0:00:08]}  Kg8 {[%clk 0:00:43]} 37. Qc4+ {[%clk 0:00:07]} 1-0


[Site "https://www.chess.com"]

[Event "Titled Tuesday Blitz January 17 Late 2023"]
[White "Stead, Kerry"]
[Black "Miszler, Levente"]
[WhiteFideId "3202577"]
[BlackFideId "763276"]
[WhiteElo "1908"]
[BlackElo "2271"]
[Result "1-0"]
[Round "02"]
[TimeControl "180+2"]
[Date "2023.01.17"]
[WhiteClock "0:01:27"]
[BlackClock "0:02:10"]

1. d4 {[%clk 0:03:00]}  d5 {[%clk 0:02:59]} 2. e4 {[%clk 0:03:00]}  e6 {[%clk 0:02:56]} 3. Be3 {[%clk 0:02:59]}  dxe4 {[%clk 0:02:56]} 4. Nd2 {[%clk 0:03:00]}  f5 {[%clk 0:02:55]} 5. f3 {[%clk 0:03:00]}  exf3 {[%clk 0:02:55]} 6. Ngxf3 {[%clk 0:03:01]}  Nf6 {[%clk 0:02:54]} 7. Bc4 {[%clk 0:03:01]}  Bd6 {[%clk 0:02:51]} 8. Qe2 {[%clk 0:03:00]}  Qe7 {[%clk 0:02:43]} 9. O-O-O {[%clk 0:02:48]}  a6 {[%clk 0:02:43]} 10. c3 {[%clk 0:02:47]}  b5 {[%clk 0:02:43]} 11. Bb3 {[%clk 0:02:47]}  Bb7 {[%clk 0:02:42]} 12. Rhe1 {[%clk 0:02:43]}  Nbd7 {[%clk 0:02:40]} 13. h3 {[%clk 0:02:35]}  O-O-O {[%clk 0:02:40]} 14. Bg5 {[%clk 0:02:28]}  Ne4 {[%clk 0:02:39]} 15. Bxe7 {[%clk 0:02:26]}  Bxe7 {[%clk 0:02:38]} 16. Nxe4 {[%clk 0:02:25]}  Bxe4 {[%clk 0:02:39]} 17. Bc2 {[%clk 0:02:21]}  Bd5 {[%clk 0:02:38]} 18. Kb1 {[%clk 0:02:18]}  Nf6 {[%clk 0:02:38]} 19. Bxf5 {[%clk 0:02:11]}  exf5 {[%clk 0:02:34]} 20. Qxe7 {[%clk 0:02:11]}  Rhg8 {[%clk 0:02:25]} 21. Qa3 {[%clk 0:01:56]}  Kb7 {[%clk 0:02:25]} 22. Re5 {[%clk 0:01:54]}  Be4+ {[%clk 0:02:24]} 23. Ka1 {[%clk 0:01:53]}  Nd5 {[%clk 0:02:24]} 24. Re1 {[%clk 0:01:42]}  Nb6 {[%clk 0:02:24]} 25. Re7 {[%clk 0:01:31]}  Nc4 {[%clk 0:02:11]} 26. Qc5 {[%clk 0:01:29]}  Rd6 {[%clk 0:02:10]} 27. Qxc7+ {[%clk 0:01:27]} 1-0


[Site "https://www.chess.com"]

[Event "Titled Tuesday Blitz January 17 Late 2023"]
[White "Mahdavi, Reza"]
[Black "Artemiev, Vladislav"]
[WhiteFideId "12595926"]
[BlackFideId "24101605"]
[WhiteElo "2339"]
[BlackElo "2701"]
[Result "1-0"]
[Round "03"]
[TimeControl "180+2"]
[Date "2023.01.17"]
[WhiteClock "0:01:44"]
[BlackClock "0:00:01"]

1. e4 {[%clk 0:03:00]}  e5 {[%clk 0:02:58]} 2. Nf3 {[%clk 0:03:01]}  Nc6 {[%clk 0:02:58]} 3. Nc3 {[%clk 0:03:01]}  Nf6 {[%clk 0:02:57]} 4. d4 {[%clk 0:03:02]}  exd4 {[%clk 0:02:57]} 5. Nxd4 {[%clk 0:03:03]}  Bb4 {[%clk 0:02:57]} 6. Nxc6 {[%clk 0:03:03]}  bxc6 {[%clk 0:02:57]} 7. Bd3 {[%clk 0:03:04]}  O-O {[%clk 0:02:57]} 8. O-O {[%clk 0:03:04]}  d5 {[%clk 0:02:56]} 9. Bd2 {[%clk 0:03:05]}  Rb8 {[%clk 0:02:50]} 10. Re1 {[%clk 0:02:58]}  Bg4 {[%clk 0:02:41]} 11. Qc1 {[%clk 0:02:52]}  Re8 {[%clk 0:02:30]} 12. exd5 {[%clk 0:02:49]}  Rxe1+ {[%clk 0:01:40]} 13. Qxe1 {[%clk 0:02:50]}  cxd5 {[%clk 0:01:40]} 14. a3 {[%clk 0:02:39]}  Bf8 {[%clk 0:01:11]} 15. b4 {[%clk 0:02:38]}  Qd7 {[%clk 0:01:00]} 16. Bf4 {[%clk 0:02:37]}  Nh5 {[%clk 0:00:38]} 17. Bg5 {[%clk 0:02:23]}  h6 {[%clk 0:00:34]} 18. Bh4 {[%clk 0:02:22]}  g5 {[%clk 0:00:24]} 19. Bg3 {[%clk 0:02:23]}  Bg7 {[%clk 0:00:20]} 20. Rb1 {[%clk 0:02:23]}  Nxg3 {[%clk 0:00:14]} 21. hxg3 {[%clk 0:02:23]}  Re8 {[%clk 0:00:12]} 22. Qd2 {[%clk 0:02:23]}  c6 {[%clk 0:00:11]} 23. Na4 {[%clk 0:02:22]}  Qe7 {[%clk 0:00:09]} 24. Nc5 {[%clk 0:02:21]}  Bc8 {[%clk 0:00:08]} 25. a4 {[%clk 0:02:18]}  h5 {[%clk 0:00:07]} 26. c4 {[%clk 0:01:48]}  dxc4 {[%clk 0:00:08]} 27. Bxc4 {[%clk 0:01:49]}  h4 {[%clk 0:00:08]} 28. gxh4 {[%clk 0:01:46]}  gxh4 {[%clk 0:00:09]} 29. Nd3 {[%clk 0:01:45]}  Qf6 {[%clk 0:00:03]} 30. Re1 {[%clk 0:01:44]}  Rxe1+ {[%clk 0:00:03]} 31. Qxe1 {[%clk 0:01:45]}  Qd8 {[%clk 0:00:01]} 32. Qe4 {[%clk 0:01:44]} 1-0


[Site "https://www.chess.com"]

[Event "Titled Tuesday Blitz January 17 Late 2023"]
[White "Tatarinov, Dmitry"]
[Black "Andreikin, Dmitry"]
[WhiteFideId "24160067"]
[BlackFideId "4158814"]
[WhiteElo "2310"]
[BlackElo "2729"]
[Result "0-1"]
[Round "03"]
[TimeControl "180+2"]
[Date "2023.01.17"]
[WhiteClock "0:02:02"]
[BlackClock "0:02:12"]

1. d4 {[%clk 0:03:00]}  d5 {[%clk 0:03:00]} 2. Nf3 {[%clk 0:03:00]}  Nf6 {[%clk 0:02:59]} 3. c4 {[%clk 0:03:00]}  e6 {[%clk 0:02:59]} 4. g3 {[%clk 0:03:01]}  Bb4+ {[%clk 0:02:56]} 5. Bd2 {[%clk 0:03:00]}  Be7 {[%clk 0:02:56]} 6. Bg2 {[%clk 0:03:00]}  O-O {[%clk 0:02:56]} 7. O-O {[%clk 0:03:00]}  Nbd7 {[%clk 0:02:57]} 8. Qc2 {[%clk 0:03:00]}  c6 {[%clk 0:02:57]} 9. a4 {[%clk 0:02:58]}  Ne4 {[%clk 0:02:55]} 10. Nc3 {[%clk 0:02:54]}  Nxd2 {[%clk 0:02:54]} 11. Nxd2 {[%clk 0:02:53]}  f5 {[%clk 0:02:51]} 12. a5 {[%clk 0:02:51]}  a6 {[%clk 0:02:50]} 13. e3 {[%clk 0:02:50]}  Nf6 {[%clk 0:02:48]} 14. Nf3 {[%clk 0:02:41]}  Bd7 {[%clk 0:02:46]} 15. Ne5 {[%clk 0:02:38]}  g5 {[%clk 0:02:45]} 16. b4 {[%clk 0:02:34]}  Be8 {[%clk 0:02:42]} 17. b5 {[%clk 0:02:34]}  axb5 {[%clk 0:02:41]} 18. cxb5 {[%clk 0:02:33]}  cxb5 {[%clk 0:02:41]} 19. Qb1 {[%clk 0:02:16]}  b4 {[%clk 0:02:40]} 20. Na4 {[%clk 0:02:10]}  Qxa5 {[%clk 0:02:34]} 21. Nc5 {[%clk 0:02:08]}  Qxa1 {[%clk 0:02:33]} 22. Qxa1 {[%clk 0:02:09]}  Rxa1 {[%clk 0:02:33]} 23. Rxa1 {[%clk 0:02:10]}  Bxc5 {[%clk 0:02:33]} 24. dxc5 {[%clk 0:02:11]}  Bb5 {[%clk 0:02:19]} 25. Rb1 {[%clk 0:02:11]}  Ra8 {[%clk 0:02:19]} 26. h3 {[%clk 0:02:08]}  Ra4 {[%clk 0:02:15]} 27. Bf3 {[%clk 0:02:07]}  Nd7 {[%clk 0:02:12]} 28. Bd1 {[%clk 0:02:02]}  Nxe5 {[%clk 0:02:10]} 29. Bxa4 {[%clk 0:02:02]}  Bxa4 {[%clk 0:02:11]} 30. Rxb4 {[%clk 0:02:02]}  Bc6 {[%clk 0:02:12]} 0-1


[Site "https://www.chess.com"]

[Event "Titled Tuesday Blitz January 17 Late 2023"]
[White "Sarana, Alexey"]
[Black "Jaracz, Pawel"]
[WhiteFideId "24133795"]
[BlackFideId "1102222"]
[WhiteElo "2685"]
[BlackElo "2467"]
[Result "1-0"]
[Round "03"]
[TimeControl "180+2"]
[Date "2023.01.17"]
[WhiteClock "0:02:27"]
[BlackClock "0:01:24"]

1. c4 {[%clk 0:02:57]}  c6 {[%clk 0:02:58]} 2. Nf3 {[%clk 0:02:56]}  d5 {[%clk 0:02:58]} 3. d4 {[%clk 0:02:57]}  Nf6 {[%clk 0:02:57]} 4. Nc3 {[%clk 0:02:57]}  dxc4 {[%clk 0:02:54]} 5. a4 {[%clk 0:02:57]}  Bf5 {[%clk 0:02:54]} 6. Ne5 {[%clk 0:02:55]}  Nbd7 {[%clk 0:02:53]} 7. Nxc4 {[%clk 0:02:55]}  Nb6 {[%clk 0:02:53]} 8. Ne5 {[%clk 0:02:56]}  a5 {[%clk 0:02:53]} 9. e3 {[%clk 0:02:56]}  e6 {[%clk 0:02:53]} 10. g4 {[%clk 0:02:55]}  Be4 {[%clk 0:02:52]} 11. f3 {[%clk 0:02:55]}  Bg6 {[%clk 0:02:44]} 12. h4 {[%clk 0:02:55]}  Bd6 {[%clk 0:02:29]} 13. h5 {[%clk 0:02:46]}  Bxe5 {[%clk 0:02:28]} 14. dxe5 {[%clk 0:02:46]}  Qxd1+ {[%clk 0:02:21]} 15. Nxd1 {[%clk 0:02:46]}  Nfd7 {[%clk 0:02:18]} 16. hxg6 {[%clk 0:02:46]}  Nxe5 {[%clk 0:02:18]} 17. Rxh7 {[%clk 0:02:45]}  O-O-O {[%clk 0:02:12]} 18. Rxh8 {[%clk 0:02:44]}  Rxh8 {[%clk 0:02:12]} 19. gxf7 {[%clk 0:02:44]}  Nxf3+ {[%clk 0:01:58]} 20. Kf2 {[%clk 0:02:43]}  Ng5 {[%clk 0:01:58]} 21. Bg2 {[%clk 0:02:38]}  Nc4 {[%clk 0:01:54]} 22. b3 {[%clk 0:02:34]}  Ne5 {[%clk 0:01:50]} 23. Kg3 {[%clk 0:02:33]}  Nd3 {[%clk 0:01:40]} 24. Nf2 {[%clk 0:02:29]}  Nxc1 {[%clk 0:01:37]} 25. Rxc1 {[%clk 0:02:29]}  Nxf7 {[%clk 0:01:38]} 26. Rc5 {[%clk 0:02:27]}  Kc7 {[%clk 0:01:29]} 27. Rxa5 {[%clk 0:02:27]}  g5 {[%clk 0:01:24]} 28. Rc5 {[%clk 0:02:27]} 1-0


[Site "https://www.chess.com"]

[Event "Titled Tuesday Blitz January 17 Late 2023"]
[White "Borges Feria, Yasel"]
[Black "Duda, Jan-Krzysztof"]
[WhiteFideId "3504921"]
[BlackFideId "1170546"]
[WhiteElo "2439"]
[BlackElo "2724"]
[Result "0-1"]
[Round "03"]
[TimeControl "180+2"]
[Date "2023.01.17"]
[WhiteClock "0:00:19"]
[BlackClock "0:00:08"]

1. d4 {[%clk 0:02:58]}  Nf6 {[%clk 0:03:00]} 2. c4 {[%clk 0:02:57]}  c5 {[%clk 0:02:58]} 3. d5 {[%clk 0:02:54]}  e6 {[%clk 0:02:59]} 4. Nc3 {[%clk 0:02:52]}  d6 {[%clk 0:02:58]} 5. h3 {[%clk 0:02:42]}  g6 {[%clk 0:02:55]} 6. e4 {[%clk 0:02:41]}  Bg7 {[%clk 0:02:54]} 7. Nf3 {[%clk 0:02:39]}  O-O {[%clk 0:02:53]} 8. Bd3 {[%clk 0:02:38]}  exd5 {[%clk 0:02:52]} 9. exd5 {[%clk 0:02:37]}  Re8+ {[%clk 0:02:51]} 10. Be3 {[%clk 0:02:37]}  Rxe3+ {[%clk 0:02:51]} 11. fxe3 {[%clk 0:02:36]}  Qe7 {[%clk 0:02:51]} 12. O-O {[%clk 0:02:32]}  Nbd7 {[%clk 0:02:48]} 13. Qd2 {[%clk 0:02:25]}  Ne5 {[%clk 0:02:35]} 14. Nxe5 {[%clk 0:02:20]}  Qxe5 {[%clk 0:02:36]} 15. Rae1 {[%clk 0:02:13]}  Nd7 {[%clk 0:02:30]} 16. e4 {[%clk 0:02:07]}  Qe7 {[%clk 0:02:27]} 17. Kh1 {[%clk 0:02:05]}  Ne5 {[%clk 0:02:27]} 18. Be2 {[%clk 0:01:55]}  Bd7 {[%clk 0:02:27]} 19. a4 {[%clk 0:01:50]}  h5 {[%clk 0:02:21]} 20. Qf4 {[%clk 0:01:46]}  a6 {[%clk 0:01:55]} 21. a5 {[%clk 0:01:41]}  Rf8 {[%clk 0:01:52]} 22. Qd2 {[%clk 0:01:34]}  Kh7 {[%clk 0:01:49]} 23. Qf4 {[%clk 0:01:22]}  Rb8 {[%clk 0:01:48]} 24. Ra1 {[%clk 0:01:18]}  Be8 {[%clk 0:01:38]} 25. Qf2 {[%clk 0:01:11]}  Nd7 {[%clk 0:01:36]} 26. Bd3 {[%clk 0:01:05]}  Bd4 {[%clk 0:01:32]} 27. Qd2 {[%clk 0:01:02]}  Kg7 {[%clk 0:01:26]} 28. Ne2 {[%clk 0:01:01]}  Bf6 {[%clk 0:01:26]} 29. Ng1 {[%clk 0:00:56]}  b6 {[%clk 0:01:10]} 30. axb6 {[%clk 0:00:53]}  Rxb6 {[%clk 0:01:11]} 31. Rab1 {[%clk 0:00:51]}  Ne5 {[%clk 0:01:06]} 32. b3 {[%clk 0:00:52]}  Bd7 {[%clk 0:00:53]} 33. Nf3 {[%clk 0:00:47]}  Rb8 {[%clk 0:00:53]} 34. Nxe5 {[%clk 0:00:47]}  Bxe5 {[%clk 0:00:54]} 35. Bc2 {[%clk 0:00:43]}  g5 {[%clk 0:00:40]} 36. Qe3 {[%clk 0:00:36]}  g4 {[%clk 0:00:39]} 37. Rbe1 {[%clk 0:00:29]}  Qh4 {[%clk 0:00:34]} 38. Rd1 {[%clk 0:00:28]}  gxh3 {[%clk 0:00:31]} 39. g3 {[%clk 0:00:28]}  Qg4 {[%clk 0:00:26]} 40. Rd2 {[%clk 0:00:29]}  a5 {[%clk 0:00:16]} 41. Bd1 {[%clk 0:00:26]}  Qg6 {[%clk 0:00:15]} 42. Ra2 {[%clk 0:00:25]}  Kh7 {[%clk 0:00:12]} 43. Raf2 {[%clk 0:00:21]}  f6 {[%clk 0:00:12]} 44. Rf4 {[%clk 0:00:18]}  Bxf4 {[%clk 0:00:09]} 45. gxf4 {[%clk 0:00:19]}  Qg2# {[%clk 0:00:08]} 0-1


[Site "https://www.chess.com"]

[Event "Titled Tuesday Blitz January 17 Late 2023"]
[White "Chigaev, Maksim"]
[Black "Sokolovsky, Yahli"]
[WhiteFideId "4108116"]
[BlackFideId "2820242"]
[WhiteElo "2628"]
[BlackElo "2461"]
[Result "1-0"]
[Round "03"]
[TimeControl "180+2"]
[Date "2023.01.17"]
[WhiteClock "0:00:24"]
[BlackClock "0:00:28"]

1. e4 {[%clk 0:03:00]}  d6 {[%clk 0:02:58]} 2. d4 {[%clk 0:03:01]}  g6 {[%clk 0:02:59]} 3. Nc3 {[%clk 0:03:01]}  Bg7 {[%clk 0:02:59]} 4. Be3 {[%clk 0:03:01]}  a6 {[%clk 0:03:00]} 5. f3 {[%clk 0:03:01]}  b5 {[%clk 0:03:00]} 6. h4 {[%clk 0:03:00]}  h5 {[%clk 0:03:00]} 7. Qd2 {[%clk 0:03:00]}  Nd7 {[%clk 0:02:56]} 8. Nh3 {[%clk 0:02:56]}  Bb7 {[%clk 0:02:56]} 9. Ng5 {[%clk 0:02:56]}  Rc8 {[%clk 0:02:53]} 10. O-O-O {[%clk 0:02:49]}  c5 {[%clk 0:02:54]} 11. Kb1 {[%clk 0:02:38]}  Ngf6 {[%clk 0:02:38]} 12. dxc5 {[%clk 0:02:31]}  Nxc5 {[%clk 0:02:38]} 13. e5 {[%clk 0:02:29]}  b4 {[%clk 0:02:38]} 14. exf6 {[%clk 0:02:28]}  exf6 {[%clk 0:02:31]} 15. Bxc5 {[%clk 0:02:08]}  O-O {[%clk 0:01:46]} 16. Nxf7 {[%clk 0:01:36]}  bxc3 {[%clk 0:01:41]} 17. Nxd8 {[%clk 0:01:35]}  cxd2 {[%clk 0:01:40]} 18. Nxb7 {[%clk 0:01:34]}  dxc5 {[%clk 0:01:38]} 19. Bc4+ {[%clk 0:01:29]}  Kh7 {[%clk 0:01:38]} 20. Rxd2 {[%clk 0:01:30]}  Rc7 {[%clk 0:01:35]} 21. Na5 {[%clk 0:01:25]}  Re8 {[%clk 0:01:31]} 22. Nb3 {[%clk 0:01:23]}  Rce7 {[%clk 0:01:29]} 23. a3 {[%clk 0:01:23]}  f5 {[%clk 0:01:27]} 24. Bxa6 {[%clk 0:01:11]}  Bh6 {[%clk 0:01:26]} 25. Rdd1 {[%clk 0:01:09]}  Re5 {[%clk 0:01:17]} 26. Bc4 {[%clk 0:01:08]}  R8e7 {[%clk 0:01:15]} 27. a4 {[%clk 0:01:07]}  Be3 {[%clk 0:01:14]} 28. a5 {[%clk 0:01:07]}  f4 {[%clk 0:01:13]} 29. c3 {[%clk 0:01:07]}  Rf5 {[%clk 0:01:13]} 30. Rd6 {[%clk 0:01:04]}  Bf2 {[%clk 0:01:13]} 31. Bd3 {[%clk 0:01:02]}  Rfe5 {[%clk 0:01:09]} 32. Bxg6+ {[%clk 0:01:02]}  Kg7 {[%clk 0:01:08]} 33. Be4 {[%clk 0:01:02]}  c4 {[%clk 0:01:07]} 34. Nd2 {[%clk 0:01:02]}  Rxa5 {[%clk 0:01:07]} 35. Nxc4 {[%clk 0:01:03]}  Ra4 {[%clk 0:01:05]} 36. Nb6 {[%clk 0:01:00]}  Ra6 {[%clk 0:01:01]} 37. Nc8 {[%clk 0:01:00]}  Rea7 {[%clk 0:01:00]} 38. Rxa6 {[%clk 0:00:47]}  Rxa6 {[%clk 0:01:01]} 39. Rd1 {[%clk 0:00:47]}  Bc5 {[%clk 0:00:54]} 40. Rd5 {[%clk 0:00:46]}  Bf8 {[%clk 0:00:49]} 41. Rg5+ {[%clk 0:00:41]}  Kf7 {[%clk 0:00:48]} 42. Rxh5 {[%clk 0:00:40]}  Ke8 {[%clk 0:00:48]} 43. Rb5 {[%clk 0:00:39]}  Rh6 {[%clk 0:00:43]} 44. h5 {[%clk 0:00:39]}  Kd7 {[%clk 0:00:44]} 45. Nb6+ {[%clk 0:00:38]}  Ke6 {[%clk 0:00:43]} 46. Nd5 {[%clk 0:00:37]}  Bd6 {[%clk 0:00:44]} 47. b4 {[%clk 0:00:32]}  Rh8 {[%clk 0:00:43]} 48. Kc2 {[%clk 0:00:31]}  Kf7 {[%clk 0:00:39]} 49. Nb6 {[%clk 0:00:27]}  Ke6 {[%clk 0:00:38]} 50. Nc4 {[%clk 0:00:27]}  Be7 {[%clk 0:00:37]} 51. Kb3 {[%clk 0:00:28]}  Bf6 {[%clk 0:00:37]} 52. Rb6+ {[%clk 0:00:28]}  Ke7 {[%clk 0:00:37]} 53. Nd6 {[%clk 0:00:28]}  Ke6 {[%clk 0:00:34]} 54. Bg6 {[%clk 0:00:27]}  Ra8 {[%clk 0:00:31]} 55. Ne4+ {[%clk 0:00:26]}  Ke5 {[%clk 0:00:31]} 56. Rxf6 {[%clk 0:00:23]}  Rc8 {[%clk 0:00:30]} 57. Rf5+ {[%clk 0:00:23]}  Ke6 {[%clk 0:00:30]} 58. Rc5 {[%clk 0:00:24]}  Rd8 {[%clk 0:00:30]} 59. Bf5+ {[%clk 0:00:24]}  Ke7 {[%clk 0:00:30]} 60. h6 {[%clk 0:00:24]}  Kf7 {[%clk 0:00:28]} 61. h7 {[%clk 0:00:24]}  Kg7 {[%clk 0:00:28]} 62. Rc7+ {[%clk 0:00:23]}  Kh8 {[%clk 0:00:28]} 63. Rc8 {[%clk 0:00:24]} 1-0


[Site "https://www.chess.com"]

[Event "Titled Tuesday Blitz January 17 Late 2023"]
[White "Djordjevic, Vuk"]
[Black "Eljanov, Pavel"]
[WhiteFideId "902098"]
[BlackFideId "14102951"]
[WhiteElo "2375"]
[BlackElo "2705"]
[Result "0-1"]
[Round "03"]
[TimeControl "180+2"]
[Date "2023.01.17"]
[WhiteClock "0:00:17"]
[BlackClock "0:00:49"]

1. d4 {[%clk 0:03:00]}  Nf6 {[%clk 0:02:56]} 2. Bg5 {[%clk 0:03:00]}  d5 {[%clk 0:02:55]} 3. Bxf6 {[%clk 0:02:59]}  exf6 {[%clk 0:02:55]} 4. e3 {[%clk 0:02:59]}  Bd6 {[%clk 0:02:55]} 5. c4 {[%clk 0:02:59]}  dxc4 {[%clk 0:02:55]} 6. Bxc4 {[%clk 0:03:00]}  O-O {[%clk 0:02:55]} 7. Nc3 {[%clk 0:03:00]}  c5 {[%clk 0:02:52]} 8. dxc5 {[%clk 0:02:45]}  Bxc5 {[%clk 0:02:52]} 9. Qc2 {[%clk 0:02:45]}  Nc6 {[%clk 0:02:48]} 10. a3 {[%clk 0:02:38]}  Ne5 {[%clk 0:02:34]} 11. Rd1 {[%clk 0:02:36]}  Qa5 {[%clk 0:02:10]} 12. Ba2 {[%clk 0:02:21]}  Bg4 {[%clk 0:02:00]} 13. Ne2 {[%clk 0:02:17]}  Bxe2 {[%clk 0:01:53]} 14. Qxe2 {[%clk 0:02:10]}  Bxa3 {[%clk 0:01:30]} 15. Rd5 {[%clk 0:01:51]}  Qc7 {[%clk 0:01:30]} 16. O-O {[%clk 0:01:41]}  Bb4 {[%clk 0:01:28]} 17. Ne4 {[%clk 0:01:32]}  Rad8 {[%clk 0:01:18]} 18. f4 {[%clk 0:01:19]}  Rxd5 {[%clk 0:01:10]} 19. Bxd5 {[%clk 0:01:20]}  Ng6 {[%clk 0:00:58]} 20. Qb5 {[%clk 0:01:20]}  Ba5 {[%clk 0:00:54]} 21. Qb3 {[%clk 0:00:36]}  Bb6 {[%clk 0:00:49]} 22. g3 {[%clk 0:00:30]}  Ne7 {[%clk 0:00:48]} 23. Bc4 {[%clk 0:00:26]}  Nf5 {[%clk 0:00:49]} 24. Re1 {[%clk 0:00:22]}  Nxe3 {[%clk 0:00:49]} 25. Kh1 {[%clk 0:00:17]} 0-1


[Site "https://www.chess.com"]

[Event "Titled Tuesday Blitz January 17 Late 2023"]
[White "Sadhwani, Raunak"]
[Black "Leitao, Rafael"]
[WhiteFideId "35093487"]
[BlackFideId "2101246"]
[WhiteElo "2627"]
[BlackElo "2592"]
[Result "1-0"]
[Round "03"]
[TimeControl "180+2"]
[Date "2023.01.17"]
[WhiteClock "0:00:17"]
[BlackClock "0:00:07"]

1. c4 {[%clk 0:03:00]}  Nf6 {[%clk 0:02:52]} 2. Nc3 {[%clk 0:02:54]}  g6 {[%clk 0:02:52]} 3. e4 {[%clk 0:02:54]}  d6 {[%clk 0:02:51]} 4. d4 {[%clk 0:02:54]}  Bg7 {[%clk 0:02:51]} 5. Nf3 {[%clk 0:02:52]}  O-O {[%clk 0:02:51]} 6. Be2 {[%clk 0:02:53]}  e5 {[%clk 0:02:51]} 7. O-O {[%clk 0:02:52]}  Nbd7 {[%clk 0:02:47]} 8. Be3 {[%clk 0:02:50]}  Qe7 {[%clk 0:02:47]} 9. Qc2 {[%clk 0:02:45]}  c6 {[%clk 0:02:47]} 10. d5 {[%clk 0:02:40]}  c5 {[%clk 0:02:47]} 11. Kh1 {[%clk 0:02:40]}  h6 {[%clk 0:02:33]} 12. h3 {[%clk 0:02:35]}  Kh8 {[%clk 0:02:17]} 13. g4 {[%clk 0:02:35]}  Nh7 {[%clk 0:01:50]} 14. Rg1 {[%clk 0:02:25]}  Ndf6 {[%clk 0:01:43]} 15. Qd2 {[%clk 0:02:16]}  Ng8 {[%clk 0:01:37]} 16. Rg3 {[%clk 0:02:14]}  f5 {[%clk 0:01:32]} 17. gxf5 {[%clk 0:02:15]}  gxf5 {[%clk 0:01:32]} 18. exf5 {[%clk 0:02:06]}  Bxf5 {[%clk 0:01:28]} 19. Rag1 {[%clk 0:02:07]}  Rf7 {[%clk 0:01:27]} 20. Nh2 {[%clk 0:02:04]}  e4 {[%clk 0:01:19]} 21. Bh5 {[%clk 0:02:03]}  Raf8 {[%clk 0:00:57]} 22. Bxf7 {[%clk 0:01:57]}  Rxf7 {[%clk 0:00:58]} 23. Ne2 {[%clk 0:01:57]}  Ngf6 {[%clk 0:00:49]} 24. Nf4 {[%clk 0:01:55]}  Ng5 {[%clk 0:00:47]} 25. Qd1 {[%clk 0:01:39]}  Nf3 {[%clk 0:00:45]} 26. Nxf3 {[%clk 0:01:35]}  exf3 {[%clk 0:00:46]} 27. Ng6+ {[%clk 0:01:25]}  Bxg6 {[%clk 0:00:47]} 28. Rxg6 {[%clk 0:01:26]}  Ne4 {[%clk 0:00:43]} 29. R1g4 {[%clk 0:01:24]}  h5 {[%clk 0:00:35]} 30. Re6 {[%clk 0:00:59]}  hxg4 {[%clk 0:00:19]} 31. Rxe7 {[%clk 0:00:59]}  Rxe7 {[%clk 0:00:19]} 32. hxg4 {[%clk 0:00:59]}  Rf7 {[%clk 0:00:17]} 33. Qd3 {[%clk 0:00:53]}  Re7 {[%clk 0:00:17]} 34. b3 {[%clk 0:00:34]}  Bh6 {[%clk 0:00:15]} 35. Kg1 {[%clk 0:00:30]}  Bg7 {[%clk 0:00:10]} 36. Qf1 {[%clk 0:00:21]}  Kg8 {[%clk 0:00:10]} 37. Qh3 {[%clk 0:00:21]}  Rf7 {[%clk 0:00:10]} 38. g5 {[%clk 0:00:22]}  Bd4 {[%clk 0:00:08]} 39. Qe6 {[%clk 0:00:16]}  Bxe3 {[%clk 0:00:08]} 40. g6 {[%clk 0:00:17]}  Bxf2+ {[%clk 0:00:07]} 41. Kf1 {[%clk 0:00:17]} 1-0


[Site "https://www.chess.com"]